fUSD/lending_fUSD_20250724
["ID","MTS","AMOUNT","RATE_DAILY","PERIOD"]
[374527348,1753337448655,-500.0,0.00026498,2]
[374527349,1753337448664,-500.0,0.00026498,2]
[374527350,1753337448674,-500.0,0.00026498,2]
[374527351,1753337448683,-500.0,0.00026498,2]
[374527352,1753337448692,-500.0,0.00026498,2]
[374527353,1753337448702,-500.0,0.00026498,2]
[374527354,1753337448711,-500.0,0.00026498,2]
[374527355,1753337448721,-500.0,0.00026498,2]
[374527356,1753337448730,-500.0,0.00026498,2]
[374527357,1753337448741,-500.0,0.00026498,2]
[374527358,1753337448750,-500.0,0.00026498,2]
[374527359,1753337448760,-500.0,0.00026498,2]
[374527360,1753337448771,-500.0,0.00026498,2]
[374527361,1753337448781,-500.0,0.00026498,2]
[374527362,1753337448793,-500.0,0.00026498,2]
[374527363,1753337448803,-500.0,0.00026498,2]
[374527364,1753337448812,-500.0,0.00026498,2]
[374527365,1753337448823,-500.0,0.00026498,2]
[374527366,1753337448832,-500.0,0.00026498,2]
[374527367,1753337448842,-500.0,0.00026498,2]
[374527368,1753337448852,-500.0,0.00026498,2]
[374527369,1753337448866,-500.0,0.00026498,2]
[374527370,1753337448875,-500.0,0.00026498,2]
[374527371,1753337448885,-500.0,0.00026498,2]
[374527372,1753337448894,-500.0,0.00026498,2]
[374527373,1753337448903,-500.0,0.00026498,2]
[374527374,1753337448914,-500.0,0.00026498,2]
[374527375,1753337448927,-500.0,0.00026498,2]
[374527376,1753337448936,-500.0,0.00026498,2]
[374527377,1753337448947,-500.0,0.00026498,2]
[374527378,1753337448957,-500.0,0.00026498,2]
[374527379,1753337448967,-500.0,0.00026498,2]
[374527380,1753337448976,-500.0,0.00026498,2]
[374527381,1753337448985,-500.0,0.00026498,2]
[374527382,1753337448995,-500.0,0.00026498,2]
[374527383,1753337449004,-500.0,0.00026498,2]
[374527384,1753337449014,-500.0,0.00026498,2]
[374527385,1753337449025,-500.0,0.00026498,2]
[374527386,1753337449034,-500.0,0.00026498,2]
[374527387,1753337449043,-500.0,0.00026498,2]
[374527388,1753337449053,-500.0,0.00026498,2]
[374527389,1753337449063,-500.0,0.00026498,2]
[374527390,1753337449074,-500.0,0.00026498,2]
[374527391,1753337449083,-500.0,0.00026498,2]
[374527392,1753337449094,-500.0,0.00026498,2]
[374527393,1753337449107,-500.0,0.00026498,2]
[374527394,1753337449117,-500.0,0.00026498,2]
[374527395,1753337449128,-500.0,0.00026498,2]
[374527396,1753337449138,-500.0,0.00026498,2]
[374527397,1753337449148,-500.0,0.00026498,2]
[374527398,1753337449159,-500.0,0.00026498,2]
[374527399,1753337449169,-500.0,0.00026498,2]
[374527400,1753337449179,-500.0,0.00026498,2]
[374527401,1753337449188,-500.0,0.00026498,2]
[374527402,1753337449198,-500.0,0.00026498,2]
[374527403,1753337449207,-500.0,0.00026498,2]
[374527404,1753337449217,-500.0,0.00026498,2]
[374527405,1753337449228,-500.0,0.00026498,2]
[374527406,1753337449237,-500.0,0.00026498,2]
[374527407,1753337449247,-500.0,0.00026498,2]
[374527408,1753337449256,-500.0,0.00026498,2]
[374527409,1753337449266,-500.0,0.00026498,2]
[374527410,1753337449275,-500.0,0.00026498,2]
[374527411,1753337449284,-500.0,0.00026498,2]
[374527412,1753337449294,-500.0,0.00026498,2]
[374527413,1753337449303,-500.0,0.00026498,2]
[374527414,1753337449312,-500.0,0.00026498,2]
[374527415,1753337449323,-500.0,0.00026498,2]
[374527416,1753337449332,-500.0,0.00026498,2]
[374527417,1753337449341,-500.0,0.00026498,2]
[374527418,1753337449351,-500.0,0.00026498,2]
[374527419,1753337449362,-500.0,0.00026498,2]
[374527420,1753337449372,-500.0,0.00026498,2]
[374527421,1753337449381,-500.0,0.00026498,2]
[374527422,1753337449391,-500.0,0.00026498,2]
[374527423,1753337449400,-500.0,0.00026498,2]
[374527424,1753337449410,-500.0,0.00026498,2]
[374527425,1753337449420,-500.0,0.00026498,2]
[374527426,1753337449429,-500.0,0.00026498,2]
[374527427,1753337449439,-500.0,0.00026498,2]
[374527428,1753337449450,-500.0,0.00026498,2]
[374527429,1753337449472,-500.0,0.00026498,2]
[374527430,1753337449492,-500.0,0.00026498,2]
[374527431,1753337449507,-500.0,0.00026498,2]
[374527432,1753337449517,-500.0,0.00026498,2]
[374527433,1753337449527,-500.0,0.00026498,2]
[374527434,1753337449536,-500.0,0.00026498,2]
[374527435,1753337449547,-500.0,0.00026498,2]
[374527436,1753337449557,-500.0,0.00026498,2]
[374527437,1753337449567,-520.0,0.00026498,2]
[374527438,1753337449576,-515.36207289,0.000265,2]
[374527439,1753337449586,-58534.0,0.000265,2]
[374527440,1753337449595,-509.0,0.00026535,9]
[374527441,1753337449607,-150.0,0.00026549,2]
[374527442,1753337449617,-10147.2175711,0.00026553,3]
[374527443,1753337449626,-150.0,0.00026557,2]
[374527444,1753337449636,-1000.0,0.00026563,2]
[374527445,1753337449645,-1612.0,0.00026567,2]
[374527446,1753337449654,-150.0,0.00026567,2]
[374527447,1753337449936,-344.45,0.00026581,2]
[374527448,1753337449958,-150.0,0.00026583,2]
[374527449,1753337449968,-150.0,0.00026587,2]
[374527450,1753337449978,-150.0,0.00026588,2]
[374527451,1753337449987,-150.0,0.00026589,2]
[374527452,1753337449997,-150.0,0.00026595,2]
[374527453,1753337450006,-150.0,0.00026598,2]
[374527454,1753337450016,-477.18900901,0.000266,3]
[374527455,1753337450026,-150.0,0.000266,2]
[374527456,1753337450035,-150.0,0.00026609,2]
[374527457,1753337450051,-2000.0,0.00026616,2]
[374527458,1753337450061,-2000.0,0.00026616,2]
[374527459,1753337450071,-1198.56363645,0.00026616,2]
[374527460,1753337450080,-150.0,0.0002662,2]
[374527461,1753337450089,-14995.0575043,0.00026632,3]
[374527462,1753337450098,-150.0,0.00026641,2]
[374527463,1753337450110,-1928.94551,0.00026642,16]
[374527464,1753337450119,-1000.0,0.00026643,2]
[374527465,1753337450128,-318.84630179,0.00026645,2]
[374527466,1753337450139,-150.0,0.00026656,2]
[374527467,1753337450148,-833.7754085,0.00026665,2]
[374527468,1753337450158,-150.0,0.00026666,2]
[374527469,1753337450167,-3328.0,0.00026667,2]
[374527470,1753337450176,-287.04,0.00026676,2]
[374527471,1753337450187,-150.0,0.00026686,2]
[374527472,1753337450196,-150.0,0.000267,2]
[374527473,1753337450206,-150.0,0.00026703,2]
[374527474,1753337450215,-786.70426446,0.00026713,2]
[374527475,1753337450224,-10147.2175711,0.00026715,3]
[374527476,1753337450234,-1000.0,0.00026723,2]
[374527477,1753337450244,-248.71531821,0.00026725,2]
[374527478,1753337450254,-600.0,0.00026727,2]
[374527479,1753337450264,-527.0,0.0002673,2]
[374527480,1753337450274,-150.0,0.00026731,2]
[374527481,1753337450284,-150.0,0.00026734,2]
[374527482,1753337450294,-150.0,0.00026739,2]
[374527483,1753337450305,-500.0,0.00026757,2]
[374527484,1753337450316,-150.0,0.00026758,2]
[374527485,1753337450326,-150.0,0.0002677,2]
[374527486,1753337450337,-1000.0,0.00026774,2]
[374527487,1753337450348,-150.0,0.00026776,2]
[374527488,1753337450358,-150.0,0.00026776,2]
[374527489,1753337450368,-150.0,0.00026786,2]
[374527490,1753337450377,-900.0,0.000268,9]
[374527491,1753337450387,-1000.0,0.00026803,2]
[374527492,1753337450396,-509.34,0.00026808,2]
[374527493,1753337450406,-150.0,0.00026811,2]
[374527494,1753337450415,-152.0,0.00026827,11]
[374527495,1753337450426,-150.0,0.00026827,2]
[374527496,1753337450435,-150.0,0.00026839,2]
[374527497,1753337450444,-1612.0,0.00026841,2]
[374527498,1753337450455,-150.0,0.00026844,2]
[374527499,1753337450465,-169.01950667,0.00026851,13]
[374527500,1753337450474,-4707.86,0.00026866,14]
[374527501,1753337450484,-286.164,0.00026866,14]
[374527502,1753337450494,-150.0,0.00026867,2]
[374527503,1753337450503,-150.0,0.00026874,2]
[374527504,1753337450513,-150.0,0.00026875,2]
[374527505,1753337450524,-150.0,0.0002688,2]
[374527506,1753337450534,-1000.0,0.00026883,2]
[374527507,1753337450543,-150.0,0.00026888,2]
[374527508,1753337450553,-150.0,0.0002689,2]
[374527509,1753337450563,-150.0,0.00026895,2]
[374527510,1753337450572,-318.84630179,0.00026899,2]
[374527511,1753337450581,-1900.0,0.000269,9]
[374527512,1753337450591,-150.0,0.00026901,2]
[374527513,1753337450601,-150.0,0.00026903,2]
[374527514,1753337450613,-150.0,0.00026913,2]
[374527515,1753337450622,-150.0,0.00026916,2]
[374527516,1753337450632,-150.0,0.00026916,2]
[374527517,1753337450642,-150.0,0.00026917,2]
[374527518,1753337450651,-200.0,0.00026922,2]
[374527519,1753337450660,-14995.0575043,0.00026939,3]
[374527520,1753337450670,-2011.0,0.00026949,2]
[374527521,1753337450680,-150.0,0.00026952,2]
[374527522,1753337450689,-10147.2175711,0.00026953,3]
[374527523,1753337450699,-150.35820423,0.00026953,2]
[374527524,1753337450708,-510.0,0.00026963,2]
[374527525,1753337450717,-500.0,0.00026963,2]
[374527526,1753337450727,-500.0,0.00026963,2]
[374527527,1753337450737,-500.0,0.00026963,2]
[374527528,1753337450746,-521.0,0.00026963,2]
[374527529,1753337450755,-500.0,0.00026963,2]
[374527530,1753337450765,-500.0,0.00026963,2]
[374527531,1753337450774,-500.0,0.00026963,2]
[374527532,1753337450786,-500.0,0.00026963,2]
[374527533,1753337450795,-500.0,0.00026963,2]
[374527534,1753337450805,-500.0,0.00026963,2]
[374527535,1753337450814,-500.0,0.00026963,2]
[374527536,1753337450823,-500.0,0.00026963,2]
[374527537,1753337450835,-500.0,0.00026963,2]
[374527538,1753337450844,-500.0,0.00026963,2]
[374527539,1753337450853,-89.6080869,0.00026963,2]
[374527540,1753337450893,-410.3919131,0.00026963,2]
[374527541,1753337450903,-500.0,0.00026963,2]
[374527542,1753337450913,-500.0,0.00026963,2]
[374527543,1753337450923,-500.0,0.00026963,2]
[374527544,1753337450933,-500.0,0.00026963,2]
[374527545,1753337450943,-500.0,0.00026963,2]
[374527546,1753337450953,-500.0,0.00026963,2]
[374527547,1753337450963,-500.0,0.00026963,2]
[374527548,1753337450973,-500.0,0.00026963,2]
[374527549,1753337450985,-565.0,0.00026963,2]
[374527550,1753337450997,-500.0,0.00026963,2]
[374527551,1753337451008,-227.56153201,0.00026963,2]
[374527552,1753337451042,-272.43846799,0.00026963,2]
[374527553,1753337451053,-500.0,0.00026963,2]
[374527554,1753337451063,-500.0,0.00026963,2]
[374527555,1753337451074,-704.0,0.00026963,2]
[374527556,1753337451085,-780.0,0.00026963,2]
[374527557,1753337451095,-1000.0,0.00026963,2]
[374527558,1753337451105,-10147.2175711,0.00026968,3]
[374527559,1753337451118,-150.0,0.0002697,2]
[374527560,1753337451128,-150.0,0.00026973,2]
[374527561,1753337451138,-500.0,0.00026973,2]
[374527562,1753337451148,-500.0,0.00026973,2]
[374527563,1753337451158,-3827.99,0.00026978,2]
[374527564,1753337451168,-380.83499855,0.0002698,2]
[374527565,1753337451178,-612.0,0.00026989,7]
[374527566,1753337451188,-501.517,0.0002699,3]
[374527567,1753337451198,-1738.65235036,0.0002699,3]
[374527568,1753337451214,-158.8816279,0.00025096,30]
[374527569,1753337451224,-1373.04256725,0.0002699,3]
[374527570,1753337451236,-39402.2195346,0.0002699,3]
[374527571,1753337451247,-9244.00406179,0.0002699,3]
[374527572,1753337451259,-412.1630567,0.0002699,3]
[374527573,1753337451271,-4636.4,0.0002699,3]
[374527574,1753337451416,-158.8816279,0.00025178,30]
[374527575,1753337451426,-3471.2183721,0.0002699,3]
[374527576,1753337451437,-7303.8451021,0.0002699,3]
[374527577,1753337452159,500.0,0.0002739,120]
[374527578,1753337460361,500.0,0.0002739,120]
[374527579,1753337479556,306.72925,0.0002739,120]
[374527580,1753337493121,2000.0,0.00025612,120]
[374527581,1753337566042,250.0,0.00015,2]
[374527582,1753337593777,500.0,0.00027397,120]
[374527583,1753337597149,2000.0,0.00027397,120]
[374527584,1753337603407,500.0,0.00027397,120]
[374527585,1753337720790,210.27673281,0.0001,120]
[374527586,1753338104965,858.12,0.0002473,120]
[374527587,1753338190820,185.59496163,0.00027397,120]
[374527588,1753338217715,1853.0,0.0002739,120]
[374527589,1753338218881,1164.0,0.0002739,120]
[374527590,1753338219444,1598.0,0.0002739,120]
[374527591,1753338221711,1192.0,0.0002739,120]
[374527592,1753338222162,300.0,0.0002739,120]
[374527593,1753338276631,216.14134873,0.00027297,120]
[374527594,1753338281081,553.5902036,0.0002739,120]
[374527595,1753338283370,610.0,0.0002739,120]
[374527596,1753338305951,152.0,0.00025,120]
[374527597,1753338307258,152.0,0.000261,120]
[374527598,1753338309487,152.0,0.000272,120]
[374527599,1753338335549,920.21979431,0.0002739,120]
[374527600,1753338338319,778.0,0.0002739,120]
[374527606,1753338356369,759.19807339,0.0002739,120]
[374527625,1753338468345,200.0,0.00027397,120]
[374527630,1753338497651,884.87,0.00021714,120]
[374527631,1753338502659,1944.37193,0.00027397,120]
[374527632,1753338515115,633.85783677,0.000199,120]
[374527633,1753338517856,45131.079997,0.000151,2]
[374527634,1753338521962,166.08715528,0.00027397,120]
[374527635,1753338523861,522.18779341,0.0002739,120]
[374527636,1753338524901,247.58384972,0.0002739,120]
[374527645,1753338632316,-558.9492341,0.000169,2]
[374527646,1753338632329,-500.0,0.00016973,2]
[374527647,1753338632339,-184.6055258,0.00016973,2]
[374527648,1753338632377,-315.3944742,0.00016973,2]
[374527649,1753338632387,-500.0,0.00016973,2]
[374527650,1753338632396,-504.22361494,0.00016973,2]
[374527651,1753338632407,-305.22176278,0.00016983,2]
[374527652,1753338632417,-570.93793796,0.0001699,2]
[374527653,1753338632428,-820.37511904,0.0001699,2]
[374527654,1753338632439,-384.53749608,0.0001699,2]
[374527655,1753338632451,-2318.58944692,0.0001699,2]
[374527657,1753338632461,-1200.0,0.00016999,2]
[374527658,1753338632471,-697.06083052,0.00017,2]
[374527659,1753338632501,-9406.40700532,0.00017,2]
[374527660,1753338632513,-48214.19311897,0.00017,2]
[374527663,1753338632694,-2834.35348,0.00017,2]
[374527669,1753338632785,-2334.8522401,0.00017,2]
[374528210,1753338638449,-479.22,0.0001699,2]
[374528211,1753338638459,-479.22,0.0001699,2]
[374528212,1753338638469,-479.22,0.0001699,2]
[374528213,1753338638478,-479.22,0.0001699,2]
[374528214,1753338638487,-479.22,0.0001699,2]
[374528215,1753338638497,-13141.69313903,0.00017,2]
[374528344,1753338640805,-189771.62772365,0.00017,2]
[374528346,1753338640815,-208479.54233638,0.00017,2]
[374528348,1753338640825,-425.47660977,0.00017521,2]
[374528350,1753338640834,-1000.0,0.00017521,2]
[374528352,1753338640844,-500.0,0.00017521,2]
[374528354,1753338640854,-168.34322505,0.000178,2]
[374528356,1753338640864,-262.96563767,0.000179,2]
[374528358,1753338640877,-292.40992802,0.000179,2]
[374528361,1753338640888,-1261.77530987,0.00018,2]
[374528363,1753338640897,-1099.1,0.00018,2]
[374528365,1753338640907,-646.17426869,0.00018068,2]
[374528367,1753338640916,-3012.44659943,0.00018467,2]
[374528369,1753338640925,-907.54,0.00019256,2]
[374528371,1753338640935,-262.96563759,0.00019856,2]
[374528373,1753338640944,-5515.4,0.00020049,2]
[374528375,1753338640954,-3012.4465994,0.00020057,2]
[374528377,1753338640963,-907.54,0.00020986,2]
[374528379,1753338640972,-353.27,0.00021245,2]
[374528381,1753338640982,-180.0,0.00021573,7]
[374528383,1753338640992,-3012.4465994,0.00021647,2]
[374528385,1753338641001,-262.96563759,0.00021812,2]
[374528387,1753338641011,-500.0,0.00022,2]
[374528389,1753338641021,-168.34322501,0.00022226,2]
[374528391,1753338641030,-152.23049956,0.000224,2]
[374528393,1753338641040,-152.23049951,0.000224,2]
[374528395,1753338641049,-152.23049951,0.000224,2]
[374528397,1753338641059,-152.23049951,0.000224,2]
[374528399,1753338641068,-152.23049951,0.000224,2]
[374528401,1753338641078,-152.23049951,0.000224,2]
[374528403,1753338641088,-24554.48046344,0.000225,3]
[374528405,1753338641097,-211.01152796,0.000225,3]
[374528407,1753338641107,-477.18900901,0.000225,3]
[374528409,1753338641117,-907.54,0.00022717,2]
[374528411,1753338641128,-200.0,0.00022808,2]
[374528413,1753338641137,-152.23049951,0.00022877,2]
[374528414,1753338641148,-173.28,0.00022964,2]
[374528416,1753338641158,-1000.0,0.00023,2]
[374528418,1753338641168,-1000.0,0.00023,2]
[374528420,1753338641178,-160.0,0.00023,3]
[374528421,1753338641187,-490.0,0.0002318,2]
[374528423,1753338641199,-3012.4465994,0.00023237,2]
[374528425,1753338641208,-509.0,0.00023313,2]
[374528427,1753338641217,-152.23049951,0.00023498,2]
[374528429,1753338641227,-1001.95,0.000235,2]
[374528431,1753338641236,-500.0,0.00023567,2]
[374528432,1753338641246,-500.0,0.00023567,2]
[374528434,1753338641256,-262.96563759,0.00023768,2]
[374528436,1753338641266,-151.0,0.00023972,2]
[374528438,1753338641276,-500.0,0.00023973,2]
[374528440,1753338641286,-500.0,0.00023973,2]
[374528441,1753338641296,-500.0,0.00023973,2]
[374528443,1753338641306,-600.0,0.00023987,2]
[374528445,1753338641316,-169.94526579,0.00023987,2]
[374528447,1753338641326,-500.0,0.00023987,2]
[374528449,1753338641335,-9216.856,0.00023987,2]
[374528450,1753338641345,-231.28369723,0.00023987,2]
[374528452,1753338641354,-156.587,0.00023987,2]
[374528454,1753338641364,-346.92554585,0.00023987,2]
[374528456,1753338641372,-500.0,0.00023999,2]
[374528457,1753338641381,-500.0,0.00023999,2]
[374528459,1753338641391,-500.0,0.00023999,2]
[374528461,1753338641400,-500.0,0.00023999,2]
[374528463,1753338641409,-500.0,0.00023999,2]
[374528465,1753338641420,-500.0,0.00023999,2]
[374528467,1753338641430,-500.0,0.00023999,2]
[374528468,1753338641439,-568.66226246,0.00023999,2]
[374528470,1753338641449,-500.0,0.00023999,2]
[374528472,1753338641458,-500.0,0.00023999,2]
[374528474,1753338641469,-500.0,0.00023999,2]
[374528476,1753338641478,-500.0,0.00023999,2]
[374528478,1753338641488,-423.38410764,0.00023999,2]
[374528479,1753338641497,-500.0,0.00023999,2]
[374528481,1753338641507,-500.0,0.00023999,2]
[374528483,1753338641517,-500.0,0.00023999,2]
[374528485,1753338641526,-500.0,0.00023999,2]
[374528487,1753338641537,-500.0,0.00023999,2]
[374528489,1753338641546,-429.615156,0.00023999,2]
[374528490,1753338641555,-500.0,0.00023999,2]
[374528492,1753338641565,-500.0,0.00023999,2]
[374528494,1753338641575,-500.0,0.00023999,2]
[374528496,1753338641585,-500.0,0.00023999,2]
[374528498,1753338641595,-335.32738747,0.00023999,2]
[374528499,1753338641604,-500.0,0.00023999,2]
[374528501,1753338641614,-500.0,0.00023999,2]
[374528503,1753338641623,-500.0,0.00023999,2]
[374528505,1753338641633,-500.0,0.00023999,2]
[374528506,1753338641642,-500.0,0.00023999,2]
[374528508,1753338641652,-500.0,0.00023999,2]
[374528510,1753338641661,-500.0,0.00023999,2]
[374528512,1753338641671,-563.18469583,0.00023999,2]
[374528514,1753338641681,-500.0,0.00023999,2]
[374528516,1753338641690,-500.0,0.00023999,2]
[374528518,1753338641700,-35433.07078182,0.00024,5]
[374528520,1753338641710,-345441.75916218,0.00024,4]
[374528521,1753338641719,-5000.0,0.00024,2]
[374528523,1753338641729,-548.78878146,0.00024115,2]
[374528525,1753338641739,-1000.0,0.00024115,2]
[374528527,1753338641748,-152.23049951,0.00024118,2]
[374528529,1753338641758,-509.0,0.00024147,3]
[374528531,1753338641767,-1000.0,0.00024173,2]
[374528532,1753338641776,-480.0,0.0002437,2]
[374528534,1753338641786,-907.54,0.00024447,2]
[374528536,1753338641795,-1000.0,0.00024521,2]
[374528538,1753338641804,-1000.0,0.00024521,2]
[374528540,1753338641814,-1000.0,0.00024521,2]
[374528542,1753338641824,-857.97289152,0.00024535,2]
[374528543,1753338641834,-160.0,0.00024557,2]
[374528545,1753338641844,-477.18900901,0.0002456,2]
[374528547,1753338641853,-839.91269601,0.0002456,2]
[374528549,1753338641863,-211.01152796,0.0002456,2]
[374528551,1753338641872,-938.98,0.00024587,2]
[374528553,1753338641882,-500.0,0.00024663,2]
[374528555,1753338641891,-152.23049951,0.00024738,2]
[374528557,1753338641900,-178.47,0.00024744,2]
[374528559,1753338641910,-159.82846543,0.00024773,2]
[374528560,1753338641919,-208114.061738,0.000248,3]
[374528562,1753338641928,-3012.4465994,0.00024827,2]
[374528564,1753338641938,-5449.64529663,0.00024857,2]
[374528566,1753338641947,-150.0,0.00024873,2]
[374528568,1753338641957,-2751.0,0.00024874,2]
[374528570,1753338641967,-160.28,0.0002488,2]
[374528572,1753338641976,-20811.4061738,0.0002489,3]
[374528574,1753338641986,-42867.21092602,0.000249,2]
[374528576,1753338641996,-196581.399585,0.000249,3]
[374528577,1753338642006,-20811.4061738,0.00024947,3]
[374528579,1753338642015,-15121.6461219,0.00024947,3]
[374528581,1753338642025,-151.43,0.00024957,2]
[374528583,1753338642034,-2014.19,0.00024957,2]
[374528585,1753338642043,-27407.59,0.00024957,7]
[374528587,1753338642052,-4143.26,0.00024957,2]
[374528589,1753338642062,-5000.0,0.00024957,2]
[374528591,1753338642071,-200.0,0.00024957,2]
[374528593,1753338642082,-839.91269601,0.00024957,7]
[374528595,1753338642092,-211.01152796,0.00024957,7]
[374528597,1753338642102,-160.0,0.00024957,7]
[374528598,1753338642112,-477.18900901,0.00024957,7]
[374528600,1753338642124,-1798.63,0.00024957,2]
[374528602,1753338642134,-15121.6461219,0.00024963,3]
[374528604,1753338642143,-500.0,0.00024973,2]
[374528606,1753338642153,-500.0,0.00024973,2]
[374528608,1753338642164,-500.0,0.00024973,2]
[374528610,1753338642173,-505.41818695,0.00024973,2]
[374528612,1753338642183,-1000.0,0.00024974,2]
[374528614,1753338642195,-509.0,0.0002498,4]
[374528616,1753338642206,-10405.7030869,0.0002499,3]
[374528618,1753338642216,-5000.0,0.00025,2]
[374528620,1753338642226,-152.47,0.00025,2]
[374528622,1753338642235,-152.97575867,0.00025,2]
[374528624,1753338642244,-228.0,0.00025,2]
[374528625,1753338642253,-666.0,0.00025017,3]
[374528627,1753338642263,-1500.0,0.00025068,2]
[374528629,1753338642272,-270.48643271,0.00025068,2]
[374528631,1753338642282,-1000.0,0.00025068,2]
[374528633,1753338642291,-180.10601631,0.00025098,2]
[374528635,1753338642300,-200.0,0.000251,7]
[374528637,1753338642310,-2000.0,0.000252,2]
[374528639,1753338642319,-1054.28,0.00025259,2]
[374528641,1753338642329,-158.8816279,0.00025288,30]
[374528643,1753338642338,-239.84119403,0.00025356,2]
[374528644,1753338642348,-164.45734943,0.00025356,2]
[374528646,1753338642357,-152.23049951,0.00025358,2]
[374528648,1753338642367,-158.8816279,0.00025397,30]
[374528650,1753338642377,-329.36762882,0.00025421,2]
[374528652,1753338642386,-158.8816279,0.00025479,30]
[374528654,1753338642395,-375.92,0.00025504,2]
[374528656,1753338642406,-403.75301242,0.00025521,2]
[374528658,1753338642415,-1000.0,0.00025521,2]
[374528660,1753338642425,-477.4696975,0.00025521,2]
[374528662,1753338642434,-470.0,0.0002555,2]
[374528664,1753338642444,-158.8816279,0.00025589,30]
[374528666,1753338642454,-168.0,0.00025605,2]
[374528668,1753338642463,-632.0,0.00025608,7]
[374528670,1753338642473,-10405.7030869,0.00025611,3]
[374528672,1753338642482,-30243.2922438,0.00025611,3]
[374528674,1753338642491,-2000.0,0.00025616,2]
[374528676,1753338642501,-1000.0,0.0002562,2]
[374528678,1753338642511,-1000.0,0.0002562,2]
[374528680,1753338642520,-1000.0,0.0002562,2]
[374528682,1753338642530,-169.81,0.0002562,2]
[374528684,1753338642541,-960.0,0.00025621,2]
[374528686,1753338642551,-563.0,0.00025621,2]
[374528688,1753338642561,-1269.0,0.00025621,2]
[374528690,1753338642570,-2018.0,0.00025621,2]
[374528692,1753338642582,-596.0,0.00025621,2]
[374528694,1753338642592,-1688.0,0.00025621,2]
[374528695,1753338642601,-1289.0,0.00025621,2]
[374528696,1753338642611,-890.0,0.00025621,2]
[374528697,1753338642620,-1167.0,0.00025621,2]
[374528698,1753338642630,-156.522,0.00025621,2]
[374528699,1753338642640,-21379.0,0.00025621,2]
[374528700,1753338642649,-6055.0,0.00025621,2]
[374528701,1753338642659,-4129.0,0.00025621,2]
[374528702,1753338642668,-953.0,0.00025621,2]
[374528703,1753338642678,-168.0,0.00025681,2]
[374528704,1753338642687,-1000.0,0.00025685,2]
[374528705,1753338642697,-6262.8026,0.00025686,2]
[374528706,1753338642707,-158.8816279,0.00025699,30]
[374528707,1753338642716,-152.19360017,0.00025699,30]
[374528708,1753338642726,-1000.0,0.00025699,2]
[374528709,1753338642735,-262.96563759,0.00025724,2]
[374528710,1753338642745,-150.0,0.00025729,2]
[374528712,1753338642754,-158.8816279,0.00025781,30]
[374528714,1753338642765,-9999.99,0.00025786,2]
[374528716,1753338642774,-509.0,0.00025814,5]
[374528718,1753338642784,-168.0,0.00025853,2]
[374528720,1753338642793,-158.8816279,0.0002589,30]
[374528722,1753338642802,-152.19360017,0.0002589,30]
[374528724,1753338642811,-5449.64529661,0.00025918,2]
[374528726,1753338642821,-177.55920018,0.00025973,30]
[374528728,1753338642834,-152.23049951,0.00025979,2]
[374528730,1753338642843,-584.60882594,0.0002599,2]
[374528732,1753338642853,-1922.07017615,0.00025999,2]
[374528734,1753338642862,-158.8816279,0.00026,30]
[374528736,1753338642872,-4404.83262518,0.00026,2]
[374528738,1753338642881,-4433.65,0.00026,2]